Workbook

Sheet 1 неделя
A1: 1 неделя | B1: Выход, гр | C1: Цена, 1 кг | D1: Цена в блюде
A2: Понедельник
A3: Салат из свежей капусты | B3: 60
A4: Капуста свежая | B4: 60 | C4: 25 | D4: =C4/1000*B4 -> 1.5
A5: Морковь свежая | B5: 8 | C5: 35 | D5: =C5/1000*B5 -> 0.2793
A6: Сахарный песок | B6: 3 | C6: 80 | D6: 0.24
A7: Соль | B7: 0.3 | C7: 16 | D7: 0.0048
A8: Масло растительное | B8: 3 | C8: 140 | D8: 0.42
A9: Котлеты | B9: 80
A10: Говядина (котлетное мясо) | B10: 72 | C10: 440 | D10: =C10/1000*B10 -> 31.68
A11: Хлеб пшенинчый | B11: 9 | C11: 60 | D11: 0.54
A12: Молоко | B12: 12 | C12: 65 | D12: 0.78
A13: Сухари панировочные | B13: 5 | C13: 100 | D13: 0.5
A14: Масло растительное | B14: 3 | C14: 140 | D14: 0.42
A15: Масло сливочное | B15: 5 | C15: 800 | D15: 4
A16: Соль | B16: 1 | C16: 16 | D16: 0.016
A17: Каша вязска гречневая | B17: 150/5
A18: Гречка | B18: 150 | C18: 100 | D18: 15
A19: Масло сливочное | B19: 5 | C19: 800 | D19: 4
A20: Соль | B20: 1 | C20: 16 | D20: 0.016
A21: Какао с молоком | B21: 200
A22: Какао порошок | B22: 4 | C22: 271 | D22: 1.084
A23: Сахар | B23: 20 | C23: 80 | D23: 1.6
A24: Молоко | B24: 100 | C24: 65 | D24: 6.5
A25: Пряник | B25: 50 | C25: 180 | D25: 9
A26: Хлеб пшеничный | B26: 30 | C26: 60 | D26: 1.8
A27: Хлеб ржано-пшеничный | B27: 20 | C27: 51 | D27: 1.02
A28: Стоимость понедельник | D28: =SUM(D4:D27) -> 80.4001
A29: Вторник
A30: Фрукты (яблоки) | B30: 100
A31: Яблоки | B31: 100 | C31: 100 | D31: =C31/1000*B31 -> 10
A32: Рагу из птицы | B32: 50/150
A33: Курица | B33: 100.00 | C33: 270 | D33: =C33/1000*B33 -> 27
A34: Картофель свежий | B34: 178.00 | C34: 25 | D34: 4.45
A35: Лук репчатый | B35: 11.90 | C35: 30 | D35: 0.357
A36: Томатная паста | B36: 2.00 | C36: 175 | D36: 0.35
A37: Масло растительное | B37: 4.00 | C37: 140 | D37: 0.56
A38: Соль | B38: 2.00 | C38: 16 | D38: 0.032
A39: Морковь свежая | B39: 13.30 | C39: 35 | D39: 0.4655
A40: Кофейный напиток с молоком | B40: 200
A41: Кофейный напиток | B41: 5 | C41: 500 | D41: 2.5
A42: Сахар | B42: 20 | C42: 80 | D42: 1.6
A43: Молоко | B43: 100 | C43: 65 | D43: 6.5
A44: Вода | B44: 120
A45: Хлеб пшеничный | B45: 30 | C45: 60 | D45: 1.8
A46: Хлеб ржано-пшеничный | B46: 20 | C46: 51 | D46: 1.02
A47: Стоимость вторник | D47: =SUM(D31:D46) -> 56.6345
A48: Среда
A49: Гуляш из говядины | B49: 50/50
A50: Говядина (лопаточный отруб) | B50: 81.00 | C50: 440 | D50: =C50/1000*B50 -> 35.64
A51: Масло растительное | B51: 5.00 | C51: 140 | D51: 0.7
A52: Лук репчатый | B52: 11.90 | C52: 30 | D52: 0.357
A53: Томатная паста | B53: 3.20 | C53: 175 | D53: 0.56
A54: Мука пшеничная | B54: 2.00 | C54: 40 | D54: 0.08
A55: Соль | B55: 1.00 | C55: 16 | D55: 0.016
A56: Лавровый лист | B56: 0.01 | C56: 960 | D56: 0.0096
A57: Макаронные изделия отварные | B57: 150
A58: Макаронные изделия | B58: 53 | C58: 50 | D58: 2.65
A59: Масло сливочное | B59: 5 | C59: 800 | D59: 4
A60: Соль | B60: 1 | C60: 16 | D60: 0.016
A61: Чай с сахаром | B61: 200/15
A62: Чай | B62: 1 | C62: 688 | D62: 0.688
A63: Сахар | B63: 15 | C63: 80 | D63: 1.2
A64: Вода | B64: 150 | D64: 0
A65: Хлеб пшеничный | B65: 30 | C65: 60 | D65: 1.8
A66: Хлеб ржано-пшеничный | B66: 20 | C66: 51 | D66: 1.02
A67: Стоимость среда | D67: =SUM(D49:D66) -> 48.7366
A68: Четверг
A69: Салат из моркови | B69: 60
A70: Морковь свежая | B70: 65 | C70: 35 | D70: =C70/1000*B70 -> 2.275
A71: Масло растительное | B71: 6 | C71: 140 | D71: 0.84
A72: Сахарный песок | B72: 6 | C72: 80 | D72: 0.48
A73: Котлеты рыбные | B73: 80
A74: Котлеты из судака (трески) п/ф | B74: 100 | C74: 325 | D74: 32.5
A75: Пюре картофельное | B75: 150
A76: Картофель | B76: 170 | C76: 25 | D76: 4.25
A77: Молоко | B77: 24 | C77: 65 | D77: 1.56
A78: Масло сливочное | B78: 5 | C78: 800 | D78: 4
A79: Соль | B79: 1 | C79: 16 | D79: 0.016
A80: Какао с молоком | B80: 200
A81: Какао порошок | B81: 4 | C81: 271 | D81: 1.084
A82: Сахар | B82: 20 | C82: 80 | D82: 1.6
A83: Молоко | B83: 100 | C83: 65 | D83: 6.5
A84: Хлеб пшеничный | B84: 30 | C84: 60 | D84: 1.8
A85: Хлеб ржано-пшеничный | B85: 20 | C85: 51 | D85: 1.02
A86: Стоимость четверг | D86: =SUM(D69:D85) -> 57.925
A87: Пятница
A88: Фрукты (яблоки) | B88: 100
A89: Яблоки | B89: 100 | C89: 100 | D89: =C89/1000*B89 -> 10
A90: Котлеты рубленные из птицы | B90: 80
A91: Курица | B91: 130 | C91: 270 | D91: =C91/1000*B91 -> 35.1
A92: Хлеб пшеничный | B92: 13 | C92: 60 | D92: 0.78
A93: Молоко | B93: 19 | C93: 65 | D93: 1.235
A94: Сухари | B94: 5 | C94: 100 | D94: 0.5
A95: Масло ратистельное | B95: 3 | C95: 140 | D95: 0.42
A96: Масло сливочное | B96: 5 | C96: 800 | D96: 4
A97: Соль | B97: 1 | C97: 16 | D97: 0.016
A98: Рис отварной | B98: 150
A99: Рис | B99: 55 | C99: 90 | D99: 4.95
A100: Масло сливочное | B100: 7 | C100: 800 | D100: 5.6
A101: Соль | B101: 1 | C101: 16 | D101: 0.016
A102: Чай с лимоном | B102: 200/15/7
A103: Чай | B103: 1 | C103: 688 | D103: 0.688
A104: Сахар | B104: 15 | C104: 80 | D104: 1.2
A105: Лимон | B105: 8 | C105: 170 | D105: 1.36
A106: Хлеб пшеничный | B106: 30 | C106: 60 | D106: 1.8
A107: Хлеб ржано-пшеничный | B107: 20 | C107: 51 | D107: 1.02
A108: Стоимость пятница | D108: =SUM(D89:D107) -> 68.685
A109: Суббота
A110: Фрукты | B110: 100
A111: Апельсин | B111: 100 | C111: 150 | D111: =C111/1000*B111 -> 15
A112: Говядина тушеная | B112: 60/30
A113: Говядина | B113: 83 | C113: 440 | D113: =C113/1000*B113 -> 36.52
A114: Морковь свежая | B114: 5 | C114: 35 | D114: 0.175
A115: Лук | B115: 5 | C115: 30 | D115: 0.15
A116: Масло растительное | B116: 5 | C116: 140 | D116: 0.7
A117: Томатная паста | B117: 7 | C117: 175 | D117: 1.225
A118: Мука пшеничная | B118: 2 | C118: 40 | D118: 0.08
A119: Соль | B119: 1 | C119: 16 | D119: 0.016
A120: Макаронные изделия отварные | B120: 150
A121: Макаронные изделия | B121: 53 | C121: 50 | D121: =C121/1000*B121 -> 2.65
A122: Масло сливочное | B122: 5 | C122: 800 | D122: 4
A123: Соль | B123: 1 | C123: 16 | D123: 0.016
A124: Чай с сахаром | B124: 200/15
A125: Чай | B125: 1 | C125: 688 | D125: 0.688
A126: Сахар | B126: 15 | C126: 80 | D126: 1.2
A127: Вода | B127: 150 | D127: 0
A128: Хлеб пшеничный | B128: 30 | C128: 60 | D128: 1.8
A129: Хлеб ржано-пшеничный | B129: 20 | C129: 51 | D129: 1.02
A130: Стоимость суббота | D130: =SUM(D111:D129) -> 65.24

Sheet 2 неделя
A1: 2 неделя | B1: Выход, гр | C1: Цена, 1 кг | D1: Цена в блюде
A2: Понедельник
A3: Фрукты | B3: 100
A4: Апельсин | B4: 100 | C4: 150 | D4: =C4/1000*B4 -> 15
A5: Сосиски | B5: 100 | D5: 0
A6: Сосиски Говяжьи | B6: 102 | C6: 380 | D6: =C6/1000*B6 -> 38.76
A7: Каша рассыпчатая (гречневая) | B7: 150
A8: Гречка | B8: 71 | C8: 100 | D8: 7.1
A9: Соль | B9: 1 | C9: 16 | D9: 0.016
A10: Какао с молоком | B10: 200 | D10: 0
A11: Какао порошок | B11: 4 | C11: 271 | D11: 1.084
A12: Сахар | B12: 20 | C12: 80 | D12: 1.6
A13: Молоко | B13: 100 | C13: 65 | D13: 6.5
A14: Вода | B14: 110 | D14: 0
A15: Хлеб пшеничный | B15: 30 | C15: 60 | D15: 1.8
A16: Хлеб ржано-пшеничный | B16: 20 | C16: 51 | D16: 1.02
A17: Стоимость понедельник | D17: =SUM(D4:D16) -> 72.88
A18: Вторник
A19: Плов из птицы | B19: 50/150
A20: Курица | B20: 90 | C20: 270 | D20: =C20/1000*B20 -> 24.3
A21: Масло растительное | B21: 7 | C21: 140 | D21: 0.98
A22: Лук репчатый | B22: 8 | C22: 30 | D22: 0.24
A23: Морковь | B23: 10 | C23: 35 | D23: 0.35
A24: Томатная паста | B24: 5 | C24: 175 | D24: 0.875
A25: Рис | B25: 35 | C25: 90 | D25: 3.15
A26: Соль | B26: 1 | C26: 16 | D26: 0.016
A27: Чай с лимоном | B27: 200/15/7
A28: Чай | B28: 1 | C28: 688 | D28: 0.688
A29: Сахар | B29: 15 | C29: 80 | D29: 1.2
A30: Лимон | B30: 8 | C30: 170 | D30: 1.36
A31: Вода | B31: 150 | D31: 0
A32: Хлеб пшеничный | B32: 30 | C32: 60 | D32: 1.8
A33: Хлеб ржано-пшеничный | B33: 20 | C33: 51 | D33: 1.02
A34: Стоимость вторник | D34: =SUM(D19:D33) -> 35.979
A35: Среда
A36: Салат из белокачанной капусты | B36: 60
A37: Капуста свежая | B37: 60 | C37: 25 | D37: =C37/1000*B37 -> 1.5
A38: Морковь свежая | B38: 8 | C38: 35 | D38: =C38/1000*B38 -> 0.2793
A39: Сахарный песок | B39: 3 | C39: 80 | D39: 0.24
A40: Соль | B40: 0.3 | C40: 16 | D40: 0.0048
A41: Масло растительное | B41: 3 | C41: 140 | D41: 0.42
A42: Котлеты рыбные | B42: 80
A43: Котеты из судака (трески) п/ф | B43: 100 | C43: 325 | D43: 32.5
A44: Пюре картофельное | B44: 150
A45: Картофель | B45: 170 | C45: 25 | D45: 4.25
A46: Молоко | B46: 24 | C46: 65 | D46: 1.56
A47: Масло сливочное | B47: 5 | C47: 800 | D47: 4
A48: Соль | B48: 1 | C48: 16 | D48: 0.016
A49: Чай с сахаром | B49: 200/15
A50: Чай | B50: 1 | C50: 688 | D50: 0.688
A51: Сахар | B51: 15 | C51: 80 | D51: 1.2
A52: Хлеб пшеничный | B52: 30 | C52: 60 | D52: 1.8
A53: Хлеб ржано-пшеничный | B53: 20 | C53: 51 | D53: 1.02
A54: Стоимость среда | D54: =SUM(D37:D53) -> 49.4781
A55: Четверг
A56: Салат из моркови | B56: 60
A57: Морковь свежая | B57: 65 | C57: 35 | D57: =C57/1000*B57 -> 2.275
A58: Масло растительное | B58: 6 | C58: 140 | D58: =C58/1000*B58 -> 0.84
A59: Сахарный песок | B59: 6 | C59: 80 | D59: 0.48
A60: Птица тушеная в соусе | B60: 50/50
A61: Курица | B61: 100 | C61: 270 | D61: =C61/1000*B61 -> 27
A62: Масло растительное | B62: 2 | C62: 140 | D62: 0.28
A63: Сметана | B63: 12.5 | C63: 190 | D63: 2.375
A64: Мука пшеничная | B64: 4 | C64: 40 | D64: 0.16
A65: Макаронные изделия отварные с маслом | B65: 150/5
A66: Макаронные изделия | B66: 53 | C66: 50 | D66: 2.65
A67: Масло сливочное | B67: 5 | C67: 800 | D67: 4
A68: Соль | B68: 1 | C68: 16 | D68: 0.016
A69: Кофейный напиток с молоком | B69: 200
A70: Кофейный напиток | B70: 5 | C70: 500 | D70: 2.5
A71: Сахар | B71: 20 | C71: 80 | D71: 1.6
A72: Молоко | B72: 100 | C72: 65 | D72: 6.5
A73: Хлеб пшеничный | B73: 30 | C73: 60 | D73: 1.8
A74: Хлеб ржано-пшеничный | B74: 20 | C74: 51 | D74: 1.02
A75: Стоимость четверг | D75: =SUM(D57:D74) -> 53.496
A76: Пятница
A77: Фрукты (бананы) | B77: 150
A78: Бананы | B78: 150 | C78: 170 | D78: =C78/1000*B78 -> 25.5
A79: Запеканта картофельная с мясом | B79: 180
A80: Говядина (котлетное мясо) | B80: 63 | C80: 440 | D80: =C80/1000*B80 -> 27.72
A81: Масло растительное | B81: 5 | C81: 140 | D81: 0.7
A82: Масло сливочное | B82: 11 | C82: 800 | D82: 8.8
A83: Сухари панировочные | B83: 3 | C83: 100 | D83: 0.3
A84: Лук репчатый | B84: 15 | C84: 30 | D84: 0.45
A85: Картофель | B85: 230 | C85: 25 | D85: 5.75
A86: Соль | B86: 1 | C86: 16 | D86: 0.016
A87: Чай с лимоном | B87: 200/15/7
A88: Чай | B88: 1 | C88: 688 | D88: 0.688
A89: Сахар | B89: 15 | C89: 80 | D89: 1.2
A90: Лимон | B90: 8 | C90: 170 | D90: 1.36
A91: Масло сливочное | B91: 10 | C91: 800 | D91: 8
A92: Сыр | B92: 10 | C92: 600 | D92: 6
A93: Хлеб пшеничный | B93: 30 | C93: 60 | D93: 1.8
A94: Хлеб ржано-пшеничный | B94: 20 | C94: 51 | D94: 1.02
A95: Стоимость пятница | D95: =SUM(D78:D94) -> 89.304
A96: Суббота
A97: Запеканка рисовая с творогом | B97: 80
A98: Творог | B98: 20 | C98: 310 | D98: =C98/1000*B98 -> 6.2
A99: Сахар | B99: 7.5 | C99: 80 | D99: 0.6
A100: Масло сливочное | B100: 10 | C100: 800 | D100: 8
A101: Яйцо | B101: 0.2 | C101: 10 | D101: 0.002
A102: Рис | B102: 24 | C102: 90 | D102: 2.16
A103: Сметана | B103: 5 | C103: 190 | D103: 0.95
A104: Чай с сахаром | B104: 200/15
A105: Чай | B105: 1 | C105: 688 | D105: 0.688
A106: Сахар | B106: 15 | C106: 80 | D106: 1.2
A107: Хлеб пшеничный | B107: 30 | C107: 60 | D107: 1.8
A108: Хлеб ржано-пшеничный | B108: 20 | C108: 51 | D108: 1.02
A109: Стоимость суббота | D109: =SUM(D97:D108) -> 22.62
A110: Итого за 2 недели | D110: ='1 неделя'!D28+'1 неделя'!D47+'1 неделя'!D67+'1 неделя'!D86+'1 неделя'!D108+'1 неделя'!D130+'2 неделя'!D17+'2 неделя'!D34+'2 неделя'!D54+'2 неделя'!D75+'2 неделя'!D95+'2 неделя'!D109 -> 701.3783 | E110: 590.4 | F110: контрольная цифра за 2 недели при стоимости 49,2 за 1 детодень

Sheet Лист3 (2)
A2: Наименование | B2: Количество продуктов сентябрь 2024 | C2: Цена поставки | D2: Зверосовхозская СОШ | E2: Красногорская СОШ | F2: СОШ № 1 | G2: СОШ № 3 | H2: СОШ № 4 | I2: Лицей № 2 | J2: Лицей № 2 новый | K2: Малокирменская ООШ | L2: Среднекирменская СОШ | M2: Усалинская СОШ | N2: Владимировская ООШ | O2: Никифоровская ООШ | P2: Большешиинская СОШ | Q2: Кемешкульская ООШ | R2: Кляушская СОШ | S2: Куюк-Ерыксинская СОШ | T2: Таканышская СОШ | U2: Албайская ООШ | V2: Дюсьметьевская СОШ | W2: Шемяковская ООШ | X2: Малосуньская ООШ | Y2: Омарская СОШ | Z2: Зюринская СОШ | AA2: Нижнеошминская СОШ | AB2: Сокольская СОШ | AC2: Верхнеошминская ООШ | AD2: Верхнесуньская ООШ | AE2: Гришкинская ООШ | AF2: Олуязский лицей | AG2: Катмышская СОШ | AH2: Нижнесуньская СОШ | AI2: Нижнеякинская СОШ | AJ2: Шадчинская СОШ | AK2: Пятилетская НШДС | AL2: Пристань Берсут ООШ | AM2: Тавельская СОШ
A3: Яблоко | B3: ='1 неделя'!F31+'1 неделя'!F89 -> 0.0 | C3: 100.0 | D3: =B3/1469*38 -> 0.00 | E3: =B3/1469*140 -> 0.00 | F3: =B3/1469*229 -> 0.00 | G3: =B3/1469*189 -> 0.00 | H3: =B3/1469*180 -> 0.00 | I3: =B3/1469*267 -> 0.00 | J3: =B3/1469*162 -> 0.00 | K3: =B3/1469*1 -> 0.00 | L3: =B3/1469*3 -> 0.00 | M3: =B3/1469*9 -> 0.00 | N3: =B3/1469*1 -> 0.00 | O3: =B3/1469*3 -> 0.00 | P3: =B3/1469*8 -> 0.00 | Q3: =B3/1469*10 -> 0.00 | R3: =B3/1469*8 -> 0.00 | S3: =B3/1469*8 -> 0.00 | T3: =B3/1469*26 -> 0.00 | U3: =B3/1469*4 -> 0.00 | V3: =B3/1469*7 -> 0.00 | W3: =B3/1469*6 -> 0.00 | X3: =B3/1469*2 -> 0.00 | Y3: =B3/1469*9 -> 0.00 | Z3: =B3/1469*7 -> 0.00 | AA3: =B3/1469*41 -> 0.00 | AB3: =B3/1469*8 -> 0.00 | AC3: =B3/1469*3 -> 0.00 | AD3: =B3/1469*3 -> 0.00 | AE3: =B3/1469*1 -> 0.00 | AF3: =B3/1469*24 -> 0.00 | AG3: =B3/1469*7 -> 0.00 | AH3: =B3/1469*18 -> 0.00 | AI3: =B3/1469*5 -> 0.00 | AJ3: =B3/1469*14 -> 0.00 | AK3: =B3/1469*5 -> 0.00 | AL3: =B3/1469*8 -> 0.0 | AM3: =B3/1469*15 -> 0.0
A4: Груша | B4: ='1 неделя'!#REF! ->  | C4: 220.0 | D4: =B4/1469*38 ->  | E4: =B4/1469*140 ->  | F4: =B4/1469*229 ->  | G4: =B4/1469*189 ->  | H4: =B4/1469*180 ->  | I4: =B4/1469*267 ->  | J4: =B4/1469*162 ->  | K4: =B4/1469*1 ->  | L4: =B4/1469*3 ->  | M4: =B4/1469*9 ->  | N4: =B4/1469*1 ->  | O4: =B4/1469*3 ->  | P4: =B4/1469*8 ->  | Q4: =B4/1469*10 ->  | R4: =B4/1469*8 ->  | S4: =B4/1469*8 ->  | T4: =B4/1469*26 ->  | U4: =B4/1469*4 ->  | V4: =B4/1469*7 ->  | W4: =B4/1469*6 ->  | X4: =B4/1469*2 ->  | Y4: =B4/1469*9 ->  | Z4: =B4/1469*7 ->  | AA4: =B4/1469*41 ->  | AB4: =B4/1469*8 ->  | AC4: =B4/1469*3 ->  | AD4: =B4/1469*3 ->  | AE4: =B4/1469*1 ->  | AF4: =B4/1469*24 ->  | AG4: =B4/1469*7 ->  | AH4: =B4/1469*18 ->  | AI4: =B4/1469*5 ->  | AJ4: =B4/1469*14 ->  | AK4: =B4/1469*5 ->  | AL4: =B4/1469*8 ->  | AM4: =B4/1469*15 -> 
A5: Апельсин | B5: ='1 неделя'!F111+'2 неделя'!F4 -> 0.0 | C5: 150.0 | D5: 0.00 | E5: 0.00 | F5: 0.00 | G5: 0.00 | H5: 0.00 | I5: 0.00 | J5: 0.00 | K5: 0.00 | L5: 0.00 | M5: 0.00 | N5: 0.00 | O5: 0.00 | P5: 0.00 | Q5: 0.00 | R5: 0.00 | S5: 0.00 | T5: 0.00 | U5: 0.00 | V5: 0.00 | W5: 0.00 | X5: 0.00 | Y5: 0.00 | Z5: 0.00 | AA5: 0.00 | AB5: 0.00 | AC5: 0.00 | AD5: 0.00 | AE5: 0.00 | AF5: 0.00 | AG5: 0.00 | AH5: 0.00 | AI5: 0.00 | AJ5: 0.00 | AK5: 0.00 | AL5: 0.0 | AM5: 0.0
A6: Банан | B6: ='2 неделя'!F78 -> 0.0 | C6: 170.0 | D6: 0.00 | E6: 0.00 | F6: 0.00 | G6: 0.00 | H6: 0.00 | I6: 0.00 | J6: 0.00 | K6: 0.00 | L6: 0.00 | M6: 0.00 | N6: 0.00 | O6: 0.00 | P6: 0.00 | Q6: 0.00 | R6: 0.00 | S6: 0.00 | T6: 0.00 | U6: 0.00 | V6: 0.00 | W6: 0.00 | X6: 0.00 | Y6: 0.00 | Z6: 0.00 | AA6: 0.00 | AB6: 0.00 | AC6: 0.00 | AD6: 0.00 | AE6: 0.00 | AF6: 0.00 | AG6: 0.00 | AH6: 0.00 | AI6: 0.00 | AJ6: 0.00 | AK6: 0.00 | AL6: 0.0 | AM6: 0.0
A7: Лимон | B7: ='1 неделя'!F105+'2 неделя'!F30+'2 неделя'!F90 -> 0.0 | C7: 170.0 | D7: 0.00 | E7: 0.00 | F7: 0.00 | G7: 0.00 | H7: 0.00 | I7: 0.00 | J7: 0.00 | K7: 0.00 | L7: 0.00 | M7: 0.00 | N7: 0.00 | O7: 0.00 | P7: 0.00 | Q7: 0.00 | R7: 0.00 | S7: 0.00 | T7: 0.00 | U7: 0.00 | V7: 0.00 | W7: 0.00 | X7: 0.00 | Y7: 0.00 | Z7: 0.00 | AA7: 0.00 | AB7: 0.00 | AC7: 0.00 | AD7: 0.00 | AE7: 0.00 | AF7: 0.00 | AG7: 0.00 | AH7: 0.00 | AI7: 0.00 | AJ7: 0.00 | AK7: 0.00 | AL7: 0.0 | AM7: 0.0
A8: Морковь | B8: ='1 неделя'!F39+'1 неделя'!#REF!+'1 неделя'!F70+'2 неделя'!F23+'2 неделя'!F38+'2 неделя'!F57+'1 неделя'!F114 ->  | C8: 35.0
A9: Картофель | B9: ='1 неделя'!F34+'1 неделя'!F76+'2 неделя'!F45+'2 неделя'!F85 -> 0.0 | C9: 25.0 | D9: 0.00 | E9: 0.00 | F9: 0.00 | G9: 0.00 | H9: 0.00 | I9: 0.00 | J9: 0.00 | K9: 0.00 | L9: 0.00 | M9: 0.00 | N9: 0.00 | O9: 0.00 | P9: 0.00 | Q9: 0.00 | R9: 0.00 | S9: 0.00 | T9: 0.00 | U9: 0.00 | V9: 0.00 | W9: 0.00 | X9: 0.00 | Y9: 0.00 | Z9: 0.00 | AA9: 0.00 | AB9: 0.00 | AC9: 0.00 | AD9: 0.00 | AE9: 0.00 | AF9: 0.00 | AG9: 0.00 | AH9: 0.00 | AI9: 0.00 | AJ9: 0.00 | AK9: 0.00 | AL9: 0.0 | AM9: 0.0
A10: Лук | B10: ='1 неделя'!F35+'1 неделя'!F52+'2 неделя'!F22+'2 неделя'!F84+'1 неделя'!F115 -> 0.0 | C10: 30.0 | D10: 0.00 | E10: 0.00 | F10: 0.00 | G10: 0.00 | H10: 0.00 | I10: 0.00 | J10: 0.00 | K10: 0.00 | L10: 0.00 | M10: 0.00 | N10: 0.00 | O10: 0.00 | P10: 0.00 | Q10: 0.00 | R10: 0.00 | S10: 0.00 | T10: 0.00 | U10: 0.00 | V10: 0.00 | W10: 0.00 | X10: 0.00 | Y10: 0.00 | Z10: 0.00 | AA10: 0.00 | AB10: 0.00 | AC10: 0.00 | AD10: 0.00 | AE10: 0.00 | AF10: 0.00 | AG10: 0.00 | AH10: 0.00 | AI10: 0.00 | AJ10: 0.00 | AK10: 0.00 | AL10: 0.0 | AM10: 0.0
A11: Свекла | B11: ='2 неделя'!#REF! ->  | C11: 20.0
A12: Капуста свежая | B12: ='1 неделя'!#REF!+'2 неделя'!F37 ->  | C12: 25.0
A13: Огурец свежий | B13: ='1 неделя'!#REF!+'1 неделя'!#REF!+'2 неделя'!#REF! ->  | C13: 100.0
A14: Помидор | B14: ='1 неделя'!#REF!+'1 неделя'!#REF!+'2 неделя'!#REF! ->  | C14: 130.0
A15: Говядина (котлетное мясо) | B15: ='1 неделя'!F10+'1 неделя'!F50+'2 неделя'!F6+'2 неделя'!F80+'1 неделя'!F113 -> 0.0 | C15: 440.0 | D15: 0.00 | E15: 0.00 | F15: 0.00 | G15: 0.00 | H15: 0.00 | I15: 0.00 | J15: 0.00 | K15: 0.00 | L15: 0.00 | M15: 0.00 | N15: 0.00 | O15: 0.00 | P15: 0.00 | Q15: 0.00 | R15: 0.00 | S15: 0.00 | T15: 0.00 | U15: 0.00 | V15: 0.00 | W15: 0.00 | X15: 0.00 | Y15: 0.00 | Z15: 0.00 | AA15: 0.00 | AB15: 0.00 | AC15: 0.00 | AD15: 0.00 | AE15: 0.00 | AF15: 0.00 | AG15: 0.00 | AH15: 0.00 | AI15: 0.00 | AJ15: 0.00 | AK15: 0.00 | AL15: 0.0 | AM15: 0.0
A16: Сосиски | B16: ='2 неделя'!G6 -> 0.0 | C16: 380.0 | D16: =B16/1469*38 -> 0.00 | E16: =B16/1469*140 -> 0.00 | F16: =B16/1469*229 -> 0.00 | G16: =B16/1469*189 -> 0.00 | H16: =B16/1469*180 -> 0.00 | I16: =B16/1469*267 -> 0.00 | J16: =B16/1469*162 -> 0.00 | K16: =B16/1469*1 -> 0.00 | L16: =B16/1469*3 -> 0.00 | M16: =B16/1469*9 -> 0.00 | N16: =B16/1469*1 -> 0.00 | O16: =B16/1469*3 -> 0.00 | P16: =B16/1469*8 -> 0.00 | Q16: =B16/1469*10 -> 0.00 | R16: =B16/1469*8 -> 0.00 | S16: =B16/1469*8 -> 0.00 | T16: =B16/1469*26 -> 0.00 | U16: =B16/1469*4 -> 0.00 | V16: =B16/1469*7 -> 0.00 | W16: =B16/1469*6 -> 0.00 | X16: =B16/1469*2 -> 0.00 | Y16: =B16/1469*9 -> 0.00 | Z16: =B16/1469*7 -> 0.00 | AA16: =B16/1469*41 -> 0.00 | AB16: =B16/1469*8 -> 0.00 | AC16: =B16/1469*3 -> 0.00 | AD16: =B16/1469*3 -> 0.00 | AE16: =B16/1469*1 -> 0.00 | AF16: =B16/1469*24 -> 0.00 | AG16: =B16/1469*7 -> 0.00 | AH16: =B16/1469*18 -> 0.00 | AI16: =B16/1469*5 -> 0.00 | AJ16: =B16/1469*14 -> 0.00 | AK16: =B16/1469*5 -> 0.00 | AL16: =B16/1469*8 -> 0.0 | AM16: =B16/1469*15 -> 0.0
A17: Грудка куриная | B17: ='1 неделя'!F33+'1 неделя'!F91+'2 неделя'!F20+'2 неделя'!F61+'2 неделя'!F98 -> 0.0 | C17: 270.0 | D17: 0.00 | E17: 0.00 | F17: 0.00 | G17: 0.00 | H17: 0.00 | I17: 0.00 | J17: 0.00 | K17: 0.00 | L17: 0.00 | M17: 0.00 | N17: 0.00 | O17: 0.00 | P17: 0.00 | Q17: 0.00 | R17: 0.00 | S17: 0.00 | T17: 0.00 | U17: 0.00 | V17: 0.00 | W17: 0.00 | X17: 0.00 | Y17: 0.00 | Z17: 0.00 | AA17: 0.00 | AB17: 0.00 | AC17: 0.00 | AD17: 0.00 | AE17: 0.00 | AF17: 0.00 | AG17: 0.00 | AH17: 0.00 | AI17: 0.00 | AJ17: 0.00 | AK17: 0.00 | AL17: 0.0 | AM17: 0.0
A18: Котлеты из рыбы | B18: ='1 неделя'!F74+'2 неделя'!F43 -> 0.0 | C18: 325.0 | D18: 0.00 | E18: 0.00 | F18: 0.00 | G18: 0.00 | H18: 0.00 | I18: 0.00 | J18: 0.00 | K18: 0.00 | L18: 0.00 | M18: 0.00 | N18: 0.00 | O18: 0.00 | P18: 0.00 | Q18: 0.00 | R18: 0.00 | S18: 0.00 | T18: 0.00 | U18: 0.00 | V18: 0.00 | W18: 0.00 | X18: 0.00 | Y18: 0.00 | Z18: 0.00 | AA18: 0.00 | AB18: 0.00 | AC18: 0.00 | AD18: 0.00 | AE18: 0.00 | AF18: 0.00 | AG18: 0.00 | AH18: 0.00 | AI18: 0.00 | AJ18: 0.00 | AK18: 0.00 | AL18: 0.0 | AM18: 0.0
A19: Гречка | B19: ='1 неделя'!F18+'2 неделя'!F8 -> 0.0 | C19: 100.0 | D19: 0.00 | E19: 0.00 | F19: 0.00 | G19: 0.00 | H19: 0.00 | I19: 0.00 | J19: 0.00 | K19: 0.00 | L19: 0.00 | M19: 0.00 | N19: 0.00 | O19: 0.00 | P19: 0.00 | Q19: 0.00 | R19: 0.00 | S19: 0.00 | T19: 0.00 | U19: 0.00 | V19: 0.00 | W19: 0.00 | X19: 0.00 | Y19: 0.00 | Z19: 0.00 | AA19: 0.00 | AB19: 0.00 | AC19: 0.00 | AD19: 0.00 | AE19: 0.00 | AF19: 0.00 | AG19: 0.00 | AH19: 0.00 | AI19: 0.00 | AJ19: 0.00 | AK19: 0.00 | AL19: 0.0 | AM19: 0.0
A20: Рис | B20: ='1 неделя'!F99+'2 неделя'!F25+'2 неделя'!#REF! ->  | C20: 90.0
A21: Макароны | B21: ='1 неделя'!F58+'2 неделя'!F66+'1 неделя'!F121 -> 0.0 | C21: 50.0 | D21: 0.00 | E21: 0.00 | F21: 0.00 | G21: 0.00 | H21: 0.00 | I21: 0.00 | J21: 0.00 | K21: 0.00 | L21: 0.00 | M21: 0.00 | N21: 0.00 | O21: 0.00 | P21: 0.00 | Q21: 0.00 | R21: 0.00 | S21: 0.00 | T21: 0.00 | U21: 0.00 | V21: 0.00 | W21: 0.00 | X21: 0.00 | Y21: 0.00 | Z21: 0.00 | AA21: 0.00 | AB21: 0.00 | AC21: 0.00 | AD21: 0.00 | AE21: 0.00 | AF21: 0.00 | AG21: 0.00 | AH21: 0.00 | AI21: 0.00 | AJ21: 0.00 | AK21: 0.00 | AL21: 0.0 | AM21: 0.0
A22: Сахар | B22: ='1 неделя'!F23+'1 неделя'!F42+'1 неделя'!#REF!+'1 неделя'!F63+'1 неделя'!F72+'1 неделя'!F82+'1 неделя'!F104+'1 неделя'!F126+'2 неделя'!F12+'2 неделя'!F29+'2 неделя'!F39+'2 неделя'!F51+'2 неделя'!F59+'2 неделя'!F71+'2 неделя'!F89+'2 неделя'!F106 ->  | C22: 80.0
A23: Соль | B23: ='1 неделя'!F16+'1 неделя'!F20+'1 неделя'!F38+'1 неделя'!#REF!+'1 неделя'!F55+'1 неделя'!F60+'1 неделя'!F79+'1 неделя'!F97+'1 неделя'!F101+'2 неделя'!F9+'2 неделя'!F26+'2 неделя'!F40+'2 неделя'!F48+'2 неделя'!F68+'2 неделя'!#REF!+'2 неделя'!F86+'2 неделя'!#REF!+'1 неделя'!F119+'1 неделя'!F123 ->  | C23: 16.0
A24: Сухари панировочные | B24: ='1 неделя'!F13+'1 неделя'!F94+'2 неделя'!F101 -> 0.0 | C24: 100.0 | D24: 0.00 | E24: 0.00 | F24: 0.00 | G24: 0.00 | H24: 0.00 | I24: 0.00 | J24: 0.00 | K24: 0.00 | L24: 0.00 | M24: 0.00 | N24: 0.00 | O24: 0.00 | P24: 0.00 | Q24: 0.00 | R24: 0.00 | S24: 0.00 | T24: 0.00 | U24: 0.00 | V24: 0.00 | W24: 0.00 | X24: 0.00 | Y24: 0.00 | Z24: 0.00 | AA24: 0.00 | AB24: 0.00 | AC24: 0.00 | AD24: 0.00 | AE24: 0.00 | AF24: 0.00 | AG24: 0.00 | AH24: 0.00 | AI24: 0.00 | AJ24: 0.00 | AK24: 0.00 | AL24: 0.0 | AM24: 0.0
A25: Мука пшеничная | B25: ='1 неделя'!F54+'2 неделя'!F64+'1 неделя'!F118 -> 0.0 | C25: 40.0 | D25: 0.00 | E25: 0.00 | F25: 0.00 | G25: 0.00 | H25: 0.00 | I25: 0.00 | J25: 0.00 | K25: 0.00 | L25: 0.00 | M25: 0.00 | N25: 0.00 | O25: 0.00 | P25: 0.00 | Q25: 0.00 | R25: 0.00 | S25: 0.00 | T25: 0.00 | U25: 0.00 | V25: 0.00 | W25: 0.00 | X25: 0.00 | Y25: 0.00 | Z25: 0.00 | AA25: 0.00 | AB25: 0.00 | AC25: 0.00 | AD25: 0.00 | AE25: 0.00 | AF25: 0.00 | AG25: 0.00 | AH25: 0.00 | AI25: 0.00 | AJ25: 0.00 | AK25: 0.00 | AL25: 0.0 | AM25: 0.0
A26: Томатная паста | B26: ='1 неделя'!F36+'1 неделя'!F53+'2 неделя'!F24+'1 неделя'!F117 -> 0.0 | C26: 175.0 | D26: 0.00 | E26: 0.00 | F26: 0.00 | G26: 0.00 | H26: 0.00 | I26: 0.00 | J26: 0.00 | K26: 0.00 | L26: 0.00 | M26: 0.00 | N26: 0.00 | O26: 0.00 | P26: 0.00 | Q26: 0.00 | R26: 0.00 | S26: 0.00 | T26: 0.00 | U26: 0.00 | V26: 0.00 | W26: 0.00 | X26: 0.00 | Y26: 0.00 | Z26: 0.00 | AA26: 0.00 | AB26: 0.00 | AC26: 0.00 | AD26: 0.00 | AE26: 0.00 | AF26: 0.00 | AG26: 0.00 | AH26: 0.00 | AI26: 0.00 | AJ26: 0.00 | AK26: 0.00 | AL26: 0.0 | AM26: 0.0
A27: Масло растительное | B27: ='1 неделя'!F14+'1 неделя'!F37+'1 неделя'!#REF!+'1 неделя'!F51+'1 неделя'!F71+'1 неделя'!F95+'1 неделя'!#REF!+'2 неделя'!F21+'2 неделя'!F41+'2 неделя'!F58+'2 неделя'!F62+'2 неделя'!#REF!+'2 неделя'!F81+'2 неделя'!#REF!+'2 неделя'!F102+'1 неделя'!F116 ->  | C27: 140.0
A28: Масло сливочное | B28: ='1 неделя'!F15+'1 неделя'!F59+'1 неделя'!F78+'1 неделя'!F96+'1 неделя'!F100+'1 неделя'!F123+'2 неделя'!F82+'2 неделя'!F103+'2 неделя'!#REF!+'1 неделя'!F122 ->  | C28: 625.0
A29: Молоко | B29: ='1 неделя'!F12+'1 неделя'!F24+'1 неделя'!F43+'1 неделя'!F77+'1 неделя'!F83+'1 неделя'!F93+'2 неделя'!F13+'2 неделя'!F46+'2 неделя'!F72+'2 неделя'!F100 -> 0.0 | C29: 65.0 | D29: 0.00 | E29: 0.00 | F29: 0.00 | G29: 0.00 | H29: 0.00 | I29: 0.00 | J29: 0.00 | K29: 0.00 | L29: 0.00 | M29: 0.00 | N29: 0.00 | O29: 0.00 | P29: 0.00 | Q29: 0.00 | R29: 0.00 | S29: 0.00 | T29: 0.00 | U29: 0.00 | V29: 0.00 | W29: 0.00 | X29: 0.00 | Y29: 0.00 | Z29: 0.00 | AA29: 0.00 | AB29: 0.00 | AC29: 0.00 | AD29: 0.00 | AE29: 0.00 | AF29: 0.00 | AG29: 0.00 | AH29: 0.00 | AI29: 0.00 | AJ29: 0.00 | AK29: 0.00 | AL29: 0.0 | AM29: 0.0
A30: Сметана | B30: ='2 неделя'!F63 -> 0.0 | C30: 190.0 | D30: 0.00 | E30: 0.00 | F30: 0.00 | G30: 0.00 | H30: 0.00 | I30: 0.00 | J30: 0.00 | K30: 0.00 | L30: 0.00 | M30: 0.00 | N30: 0.00 | O30: 0.00 | P30: 0.00 | Q30: 0.00 | R30: 0.00 | S30: 0.00 | T30: 0.00 | U30: 0.00 | V30: 0.00 | W30: 0.00 | X30: 0.00 | Y30: 0.00 | Z30: 0.00 | AA30: 0.00 | AB30: 0.00 | AC30: 0.00 | AD30: 0.00 | AE30: 0.00 | AF30: 0.00 | AG30: 0.00 | AH30: 0.00 | AI30: 0.00 | AJ30: 0.00 | AK30: 0.00 | AL30: 0.0 | AM30: 0.0
A31: Чай | B31: ='1 неделя'!F62+'1 неделя'!F103+'1 неделя'!F125+'2 неделя'!F28+'2 неделя'!F50+'2 неделя'!F88+'2 неделя'!F105 -> 0.0 | C31: 688.0 | D31: 0.00 | E31: 0.00 | F31: 0.00 | G31: 0.00 | H31: 0.00 | I31: 0.00 | J31: 0.00 | K31: 0.00 | L31: 0.00 | M31: 0.00 | N31: 0.00 | O31: 0.00 | P31: 0.00 | Q31: 0.00 | R31: 0.00 | S31: 0.00 | T31: 0.00 | U31: 0.00 | V31: 0.00 | W31: 0.00 | X31: 0.00 | Y31: 0.00 | Z31: 0.00 | AA31: 0.00 | AB31: 0.00 | AC31: 0.00 | AD31: 0.00 | AE31: 0.00 | AF31: 0.00 | AG31: 0.00 | AH31: 0.00 | AI31: 0.00 | AJ31: 0.00 | AK31: 0.00 | AL31: 0.0 | AM31: 0.0
A32: Кофейный напиток | B32: ='1 неделя'!F41+'2 неделя'!F70 -> 0.0 | C32: 500.0 | D32: 0.00 | E32: 0.00 | F32: 0.00 | G32: 0.00 | H32: 0.00 | I32: 0.00 | J32: 0.00 | K32: 0.00 | L32: 0.00 | M32: 0.00 | N32: 0.00 | O32: 0.00 | P32: 0.00 | Q32: 0.00 | R32: 0.00 | S32: 0.00 | T32: 0.00 | U32: 0.00 | V32: 0.00 | W32: 0.00 | X32: 0.00 | Y32: 0.00 | Z32: 0.00 | AA32: 0.00 | AB32: 0.00 | AC32: 0.00 | AD32: 0.00 | AE32: 0.00 | AF32: 0.00 | AG32: 0.00 | AH32: 0.00 | AI32: 0.00 | AJ32: 0.00 | AK32: 0.00 | AL32: 0.0 | AM32: 0.0
A33: Какао порошок | B33: ='1 неделя'!F22+'1 неделя'!F81+'2 неделя'!F11 -> 0.0 | C33: 271.0 | D33: 0.00 | E33: 0.00 | F33: 0.00 | G33: 0.00 | H33: 0.00 | I33: 0.00 | J33: 0.00 | K33: 0.00 | L33: 0.00 | M33: 0.00 | N33: 0.00 | O33: 0.00 | P33: 0.00 | Q33: 0.00 | R33: 0.00 | S33: 0.00 | T33: 0.00 | U33: 0.00 | V33: 0.00 | W33: 0.00 | X33: 0.00 | Y33: 0.00 | Z33: 0.00 | AA33: 0.00 | AB33: 0.00 | AC33: 0.00 | AD33: 0.00 | AE33: 0.00 | AF33: 0.00 | AG33: 0.00 | AH33: 0.00 | AI33: 0.00 | AJ33: 0.00 | AK33: 0.00 | AL33: 0.0 | AM33: 0.0
A34: Хлеб пшеничный | B34: ='1 неделя'!F26+'1 неделя'!F45+'1 неделя'!F65+'1 неделя'!F84+'1 неделя'!F106+'1 неделя'!F128+'2 неделя'!F15+'2 неделя'!F32+'2 неделя'!F52+'2 неделя'!F73+'2 неделя'!F93+'2 неделя'!F107 -> 0.0 | C34: 60.0 | D34: 0.00 | E34: 0.00 | F34: 0.00 | G34: 0.00 | H34: 0.00 | I34: 0.00 | J34: 0.00 | K34: 0.00 | L34: 0.00 | M34: 0.00 | N34: 0.00 | O34: 0.00 | P34: 0.00 | Q34: 0.00 | R34: 0.00 | S34: 0.00 | T34: 0.00 | U34: 0.00 | V34: 0.00 | W34: 0.00 | X34: 0.00 | Y34: 0.00 | Z34: 0.00 | AA34: 0.00 | AB34: 0.00 | AC34: 0.00 | AD34: 0.00 | AE34: 0.00 | AF34: 0.00 | AG34: 0.00 | AH34: 0.00 | AI34: 0.00 | AJ34: 0.00 | AK34: 0.00 | AL34: 0.0 | AM34: 0.0
A35: Хлеб ржано-пшеничный | B35: ='1 неделя'!F27+'1 неделя'!F46+'1 неделя'!F66+'1 неделя'!F85+'1 неделя'!F107+'1 неделя'!F129+'2 неделя'!F16+'2 неделя'!F33+'2 неделя'!F53+'2 неделя'!F74+'2 неделя'!F94+'2 неделя'!F108 -> 0.0 | C35: 51.00 | D35: 0.00 | E35: 0.00 | F35: 0.00 | G35: 0.00 | H35: 0.00 | I35: 0.00 | J35: 0.00 | K35: 0.00 | L35: 0.00 | M35: 0.00 | N35: 0.00 | O35: 0.00 | P35: 0.00 | Q35: 0.00 | R35: 0.00 | S35: 0.00 | T35: 0.00 | U35: 0.00 | V35: 0.00 | W35: 0.00 | X35: 0.00 | Y35: 0.00 | Z35: 0.00 | AA35: 0.00 | AB35: 0.00 | AC35: 0.00 | AD35: 0.00 | AE35: 0.00 | AF35: 0.00 | AG35: 0.00 | AH35: 0.00 | AI35: 0.00 | AJ35: 0.00 | AK35: 0.00 | AL35: 0.0 | AM35: 0.0
K36: =H36/394*3 -> 0.00 | L36: =H36/394*5 -> 0.00 | M36: =H36/394*15 -> 0.00 | N36: =H36/394*4 -> 0.00 | O36: =H36/304*5 -> 0.00 | P36: =H36/304*12 -> 0.00 | Q36: =H36/394*5 -> 0.00 | R36: =H36/394*5 -> 0.00 | S36: =H36/394*21 -> 0.00 | T36: =H36/394*31 -> 0.00 | U36: =H36/394*3 -> 0.00 | V36: =H36/394*13 -> 0.00 | W36: =H36/394*6 -> 0.00 | X36: =H36/394*7 -> 0.00 | Y36: =H36/394*10 -> 0.00 | Z36: =H36/394*16 -> 0.00 | AA36: =H36/394*41 -> 0.00 | AB36: =H36/394*12 -> 0.00 | AC36: =H36/394*16 -> 0.00 | AD36: =H36/394*5 -> 0.00 | AE36: =H36/394*8 -> 0.00 | AF36: =H36/394*31 -> 0.00 | AG36: =H36/394*20 -> 0.00 | AH36: =H36/394*15 -> 0.00 | AI36: =H36/394*18 -> 0.00 | AJ36: =H36/394*19 -> 0.00 | AK36: =H36/394*13 -> 0.00 | AL36: =H36/394*8 -> 0.0 | AM36: =H36/394*17 -> 0.0
K37: 0.00 | L37: 0.00 | M37: 0.00 | N37: 0.00 | O37: 0.00 | P37: 0.00 | Q37: 0.00 | R37: 0.00 | S37: 0.00 | T37: 0.00 | U37: 0.00 | V37: 0.00 | W37: 0.00 | X37: 0.00 | Y37: 0.00 | Z37: 0.00 | AA37: 0.00 | AB37: 0.00 | AC37: 0.00 | AD37: 0.00 | AE37: 0.00 | AF37: 0.00 | AG37: 0.00 | AH37: 0.00 | AI37: 0.00 | AJ37: 0.00 | AK37: 0.00 | AL37: 0.0 | AM37: 0.0
K38: 0.00 | L38: 0.00 | M38: 0.00 | N38: 0.00 | O38: 0.00 | P38: 0.00 | Q38: 0.00 | R38: 0.00 | S38: 0.00 | T38: 0.00 | U38: 0.00 | V38: 0.00 | W38: 0.00 | X38: 0.00 | Y38: 0.00 | Z38: 0.00 | AA38: 0.00 | AB38: 0.00 | AC38: 0.00 | AD38: 0.00 | AE38: 0.00 | AF38: 0.00 | AG38: 0.00 | AH38: 0.00 | AI38: 0.00 | AJ38: 0.00 | AK38: 0.00 | AL38: 0.0 | AM38: 0.0
